[Event "*** Titled Tuesday Blitz"]
[Site "Chess.com"]
[Date "2020.03.03"]
[Round "7"]
[White "ChelsieMonica"]
[Black "JozefKneht"]
[Result "1-0"]
[WhiteElo "2201"]
[BlackElo "2559"]
[TimeControl "180+1"]
[EndTime "14:12:53 PST"]
[Termination "ChelsieMonica won by resignation"]

1. c4 {[%clk 0:03:00.9]} 1... e6 {[%clk 0:02:59.1]} 2. Nf3 {[%clk 0:03:00.7]}
2... d5 {[%clk 0:02:59]} 3. e3 {[%clk 0:03:00.4]} 3... Nf6 {[%clk 0:02:58.9]} 4.
Be2 {[%clk 0:03:00]} 4... Be7 {[%clk 0:02:59.4]} 5. O-O {[%clk 0:02:58.8]} 5...
O-O {[%clk 0:02:59.9]} 6. Nc3 {[%clk 0:02:58.7]} 6... c5 {[%clk 0:02:59.6]} 7.
d4 {[%clk 0:02:55]} 7... Nc6 {[%clk 0:02:56.8]} 8. cxd5 {[%clk 0:02:52.3]} 8...
exd5 {[%clk 0:02:55.9]} 9. dxc5 {[%clk 0:02:52.7]} 9... Bxc5 {[%clk 0:02:55.6]}
10. a3 {[%clk 0:02:53.2]} 10... a6 {[%clk 0:02:55.5]} 11. b4 {[%clk 0:02:53.5]}
11... Ba7 {[%clk 0:02:55.5]} 12. Bb2 {[%clk 0:02:54.1]} 12... Be6 {[%clk
0:02:55.9]} 13. Ng5 {[%clk 0:02:51]} 13... Qe7 {[%clk 0:02:52.4]} 14. Bf3 {[%clk
0:02:46.9]} 14... Rfd8 {[%clk 0:02:48.5]} 15. Ne2 {[%clk 0:02:46.7]} 15... h6
{[%clk 0:02:33]} 16. Nxe6 {[%clk 0:02:41.2]} 16... fxe6 {[%clk 0:02:33.9]} 17.
Rc1 {[%clk 0:02:38.6]} 17... Rac8 {[%clk 0:02:33.9]} 18. Qd3 {[%clk 0:02:34.6]}
18... e5 {[%clk 0:02:23.7]} 19. Qb3 {[%clk 0:02:32.8]} 19... Kh8 {[%clk
0:02:21.3]} 20. Ng3 {[%clk 0:02:32.2]} 20... Qd7 {[%clk 0:02:01.7]} 21. Rfd1
{[%clk 0:02:29.9]} 21... d4 {[%clk 0:02:00.5]} 22. a4 {[%clk 0:02:24.8]} 22...
Qe7 {[%clk 0:01:44.8]} 23. Bxc6 {[%clk 0:02:24.4]} 23... bxc6 {[%clk 0:01:43.8]}
24. exd4 {[%clk 0:02:23.1]} 24... exd4 {[%clk 0:01:42.1]} 25. Nf5 {[%clk
0:02:21.1]} 25... Qe5 {[%clk 0:01:40.4]} 26. Qh3 {[%clk 0:02:14.2]} 26... a5
{[%clk 0:01:39.3]} 27. Re1 {[%clk 0:02:08.6]} 27... Qb8 {[%clk 0:01:19.7]} 28.
Nxh6 {[%clk 0:01:59]} 28... gxh6 {[%clk 0:01:18.5]} 29. Qxh6+ {[%clk 0:01:58.6]}
29... Kg8 {[%clk 0:01:06.7]} 30. Qg6+ {[%clk 0:01:57.4]} 1-0

[Event "*** Titled Tuesday Blitz"]
[Site "Chess.com"]
[Date "2020.03.03"]
[Round "7"]
[White "Vegan4future"]
[Black "talman67"]
[Result "1/2-1/2"]
[WhiteElo "2532"]
[BlackElo "2523"]
[TimeControl "180+1"]
[EndTime "14:13:10 PST"]
[Termination "Game drawn by repetition"]

1. e4 {[%clk 0:01:56.5]} 1... e5 {[%clk 0:02:58.8]} 2. Nf3 {[%clk 0:01:56.7]}
2... Nc6 {[%clk 0:02:58.4]} 3. d4 {[%clk 0:01:57.3]} 3... exd4 {[%clk
0:02:57.6]} 4. Nxd4 {[%clk 0:01:58.2]} 4... Nf6 {[%clk 0:02:57.8]} 5. Nxc6
{[%clk 0:01:58.3]} 5... bxc6 {[%clk 0:02:58.7]} 6. e5 {[%clk 0:01:58.8]} 6...
Qe7 {[%clk 0:02:58.9]} 7. Qe2 {[%clk 0:01:58.6]} 7... Nd5 {[%clk 0:02:59.5]} 8.
c4 {[%clk 0:01:59.2]} 8... Nb6 {[%clk 0:02:59.6]} 9. b3 {[%clk 0:01:58.1]} 9...
a5 {[%clk 0:02:59.4]} 10. Bb2 {[%clk 0:01:57.3]} 10... a4 {[%clk 0:02:59.6]} 11.
Nc3 {[%clk 0:01:56.9]} 11... axb3 {[%clk 0:02:56.3]} 12. axb3 {[%clk 0:01:57.8]}
12... Rxa1+ {[%clk 0:02:56.5]} 13. Bxa1 {[%clk 0:01:58.7]} 13... Qa3 {[%clk
0:02:56.8]} 14. Qb2 {[%clk 0:01:58.1]} 14... Qa5 {[%clk 0:02:49.2]} 15. Be2
{[%clk 0:01:49.9]} 15... Qxe5 {[%clk 0:02:39.7]} 16. O-O {[%clk 0:01:43.8]}
16... Bb4 {[%clk 0:02:31.3]} 17. Qc2 {[%clk 0:01:24.6]} 17... Qe7 {[%clk
0:02:18.9]} 18. Bd3 {[%clk 0:01:18.3]} 18... h6 {[%clk 0:02:14.9]} 19. Na2
{[%clk 0:01:01.2]} 19... Bd6 {[%clk 0:02:08.8]} 20. Bxg7 {[%clk 0:00:50.6]}
20... Rg8 {[%clk 0:02:08.1]} 21. Bb2 {[%clk 0:00:48.5]} 21... Bxh2+ {[%clk
0:01:45.6]} 22. Kxh2 {[%clk 0:00:48.1]} 22... Qh4+ {[%clk 0:01:45.6]} 23. Kg1
{[%clk 0:00:45.4]} 23... Rxg2+ {[%clk 0:01:46.5]} 24. Kxg2 {[%clk 0:00:45.6]}
24... Qg4+ {[%clk 0:01:47.4]} 25. Kh2 {[%clk 0:00:46.1]} 25... Qh4+ {[%clk
0:01:48.3]} 26. Kg2 {[%clk 0:00:46.5]} 26... Qg4+ {[%clk 0:01:49.2]} 27. Kh2
{[%clk 0:00:47]} 27... Qh4+ {[%clk 0:01:50.1]} 28. Kg2 {[%clk 0:00:47.8]}
1/2-1/2

[Event "*** Titled Tuesday Blitz"]
[Site "Chess.com"]
[Date "2020.03.03"]
[Round "7"]
[White "silverback96"]
[Black "Bongcloudtransvestit"]
[Result "0-1"]
[WhiteElo "2051"]
[BlackElo "2346"]
[TimeControl "180+1"]
[EndTime "14:13:16 PST"]
[Termination "Bongcloudtransvestit won by resignation"]

1. e4 {[%clk 0:02:58.2]} 1... g6 {[%clk 0:02:59.9]} 2. d4 {[%clk 0:02:55.1]}
2... d6 {[%clk 0:02:59.7]} 3. Nc3 {[%clk 0:02:52.9]} 3... Nf6 {[%clk 0:03:00.1]}
4. Nf3 {[%clk 0:02:52.7]} 4... Bg7 {[%clk 0:02:59.6]} 5. Bc4 {[%clk 0:02:52.7]}
5... O-O {[%clk 0:02:59.1]} 6. h3 {[%clk 0:02:51.6]} 6... Nxe4 {[%clk
0:02:58.5]} 7. Nxe4 {[%clk 0:02:49.4]} 7... d5 {[%clk 0:02:58.1]} 8. Bd3 {[%clk
0:02:49.6]} 8... dxe4 {[%clk 0:02:58.5]} 9. Bxe4 {[%clk 0:02:50.5]} 9... Nd7
{[%clk 0:02:56.7]} 10. O-O {[%clk 0:02:48.2]} 10... c5 {[%clk 0:02:57.1]} 11. c3
{[%clk 0:02:38.8]} 11... cxd4 {[%clk 0:02:56.8]} 12. Nxd4 {[%clk 0:02:39.7]}
12... Nc5 {[%clk 0:02:56.5]} 13. Bf3 {[%clk 0:02:39.3]} 13... e5 {[%clk
0:02:48.4]} 14. Nb3 {[%clk 0:02:37.1]} 14... Nd3 {[%clk 0:02:35.8]} 15. Be3
{[%clk 0:02:29.8]} 15... Nxb2 {[%clk 0:02:29.6]} 16. Qe2 {[%clk 0:02:29.2]}
16... Na4 {[%clk 0:02:23.9]} 17. Qb5 {[%clk 0:02:23.8]} 17... Nxc3 {[%clk
0:02:22.4]} 18. Qc4 {[%clk 0:02:15.7]} 18... e4 {[%clk 0:02:19.1]} 19. Bxe4
{[%clk 0:02:08.5]} 19... Nxe4 {[%clk 0:02:17.8]} 20. Qxe4 {[%clk 0:02:09.4]}
20... Bf5 {[%clk 0:02:13.8]} 21. Qxb7 {[%clk 0:02:01.7]} 21... Bxa1 {[%clk
0:02:13.6]} 22. Rxa1 {[%clk 0:02:01.7]} 22... a5 {[%clk 0:02:02.4]} 23. Qf3
{[%clk 0:01:54.9]} 23... Re8 {[%clk 0:01:40.4]} 24. Rd1 {[%clk 0:01:47.7]} 24...
Qe7 {[%clk 0:01:34.6]} 25. Bd4 {[%clk 0:01:45.3]} 25... Qe2 {[%clk 0:01:31.2]}
26. Qxe2 {[%clk 0:01:29.6]} 26... Rxe2 {[%clk 0:01:32.1]} 27. a3 {[%clk
0:01:29]} 27... Bc2 {[%clk 0:01:30.6]} 28. Rd2 {[%clk 0:01:02.8]} 28... Re1+
{[%clk 0:01:29.1]} 0-1

[Event "*** Titled Tuesday Blitz"]
[Site "Chess.com"]
[Date "2020.03.03"]
[Round "7"]
[White "albano87"]
[Black "pedroholly22"]
[Result "1-0"]
[WhiteElo "1925"]
[BlackElo "2305"]
[TimeControl "180+1"]
[EndTime "14:13:20 PST"]
[Termination "albano87 won by resignation"]

1. d4 {[%clk 0:03:00.8]} 1... c5 {[%clk 0:03:00.9]} 2. e3 {[%clk 0:02:57.8]}
2... b6 {[%clk 0:02:58.9]} 3. Nf3 {[%clk 0:02:57.5]} 3... Bb7 {[%clk 0:02:58.7]}
4. Be2 {[%clk 0:02:58.2]} 4... g6 {[%clk 0:02:59.2]} 5. O-O {[%clk 0:02:58.8]}
5... Bg7 {[%clk 0:02:59.7]} 6. c4 {[%clk 0:02:59.4]} 6... Nf6 {[%clk 0:03:00.1]}
7. Nc3 {[%clk 0:03:00.1]} 7... O-O {[%clk 0:03:00]} 8. b3 {[%clk 0:03:00.3]}
8... d6 {[%clk 0:02:59.6]} 9. Bb2 {[%clk 0:03:00.8]} 9... Ne4 {[%clk 0:02:59.8]}
10. Nxe4 {[%clk 0:02:59.9]} 10... Bxe4 {[%clk 0:03:00.7]} 11. Qd2 {[%clk
0:03:00.4]} 11... Nc6 {[%clk 0:03:00.3]} 12. d5 {[%clk 0:03:00.2]} 12... Bxf3
{[%clk 0:02:59.8]} 13. Bxf3 {[%clk 0:02:52.6]} 13... Ne5 {[%clk 0:02:55.3]} 14.
Be2 {[%clk 0:02:49.7]} 14... f6 {[%clk 0:02:55.3]} 15. f4 {[%clk 0:02:45.7]}
15... Nd7 {[%clk 0:02:55.2]} 16. e4 {[%clk 0:02:44.8]} 16... f5 {[%clk
0:02:55.1]} 17. Bf3 {[%clk 0:02:43.3]} 17... fxe4 {[%clk 0:02:54.7]} 18. Bxg7
{[%clk 0:02:42.5]} 18... exf3 {[%clk 0:02:51.5]} 19. Bxf8 {[%clk 0:02:41.6]}
19... Qxf8 {[%clk 0:02:51.6]} 20. Rxf3 {[%clk 0:02:38]} 20... Qf6 {[%clk
0:02:47.7]} 21. Re1 {[%clk 0:02:38]} 21... a6 {[%clk 0:02:45.7]} 22. Re6 {[%clk
0:02:37.5]} 22... Qf7 {[%clk 0:02:45.5]} 23. Rfe3 {[%clk 0:02:37.4]} 23... Re8
{[%clk 0:02:43.4]} 24. Qe2 {[%clk 0:02:29.6]} 24... Kf8 {[%clk 0:02:43.5]} 25.
g3 {[%clk 0:02:24.6]} 25... Nf6 {[%clk 0:02:43.3]} 26. a4 {[%clk 0:02:16.5]}
26... b5 {[%clk 0:02:42.3]} 27. cxb5 {[%clk 0:02:03.5]} 27... axb5 {[%clk
0:02:42.4]} 28. Qxb5 {[%clk 0:02:00.2]} 28... Nxd5 {[%clk 0:02:40.4]} 29. Re1
{[%clk 0:02:00.5]} 29... Qf5 {[%clk 0:02:37.5]} 30. Rxd6 {[%clk 0:01:47.3]}
30... Nxf4 {[%clk 0:02:31.7]} 31. Rf1 {[%clk 0:01:37.9]} 31... Nh3+ {[%clk
0:02:27.3]} 32. Kg2 {[%clk 0:01:37.2]} 32... exd6 {[%clk 0:02:19.6]} 33. Rxf5+
{[%clk 0:01:35.7]} 33... gxf5 {[%clk 0:02:19.9]} 34. Kxh3 {[%clk 0:01:35.7]}
34... Kf7 {[%clk 0:02:19.8]} 35. Qd7+ {[%clk 0:01:34.9]} 35... Re7 {[%clk
0:02:19.7]} 36. Qxf5+ {[%clk 0:01:34.3]} 36... Ke8 {[%clk 0:02:18.7]} 37. Qc8+
{[%clk 0:01:32.5]} 37... Kf7 {[%clk 0:02:18.7]} 38. a5 {[%clk 0:01:33]} 38... h5
{[%clk 0:02:17.3]} 39. a6 {[%clk 0:01:32.3]} 39... h4 {[%clk 0:02:18.2]} 40.
Kxh4 {[%clk 0:01:30.9]} 40... d5 {[%clk 0:02:16.5]} 41. Qf5+ {[%clk 0:01:29.7]}
41... Kg7 {[%clk 0:02:15.7]} 42. Qg5+ {[%clk 0:01:29.3]} 42... Kf7 {[%clk
0:02:16]} 43. Qxd5+ {[%clk 0:01:29.4]} 43... Kf6 {[%clk 0:02:15.7]} 44. Qd6+
{[%clk 0:01:28.6]} 44... Kf7 {[%clk 0:02:16.6]} 45. Qxe7+ {[%clk 0:01:28.6]}
45... Kxe7 {[%clk 0:02:17.5]} 46. a7 {[%clk 0:01:28.6]} 46... Kd6 {[%clk
0:02:18.4]} 47. a8=Q {[%clk 0:01:28.3]} 47... c4 {[%clk 0:02:19.3]} 48. bxc4
{[%clk 0:01:28]} 48... Kc5 {[%clk 0:02:13.2]} 49. Qd5+ {[%clk 0:01:28.1]} 49...
Kb4 {[%clk 0:02:14.1]} 50. c5 {[%clk 0:01:28.5]} 50... Kc3 {[%clk 0:02:15]} 51.
c6 {[%clk 0:01:28.6]} 1-0

[Event "*** Titled Tuesday Blitz"]
[Site "Chess.com"]
[Date "2020.03.03"]
[Round "7"]
[White "SoltaniciR"]
[Black "francyIM"]
[Result "0-1"]
[WhiteElo "2524"]
[BlackElo "2711"]
[TimeControl "180+1"]
[EndTime "14:13:34 PST"]
[Termination "francyIM won by resignation"]

1. e4 {[%clk 0:03:00.9]} 1... e5 {[%clk 0:02:59.4]} 2. Nf3 {[%clk 0:03:01]} 2...
Nc6 {[%clk 0:02:59.8]} 3. Bb5 {[%clk 0:03:00.9]} 3... a6 {[%clk 0:02:58.6]} 4.
Ba4 {[%clk 0:03:00.8]} 4... Nf6 {[%clk 0:02:57.5]} 5. O-O {[%clk 0:03:00.7]}
5... Be7 {[%clk 0:02:57.7]} 6. Re1 {[%clk 0:03:00.7]} 6... b5 {[%clk 0:02:57.7]}
7. Bb3 {[%clk 0:03:00.9]} 7... O-O {[%clk 0:02:56.6]} 8. d3 {[%clk 0:03:00.4]}
8... d6 {[%clk 0:02:54.3]} 9. c3 {[%clk 0:03:00]} 9... h6 {[%clk 0:02:52.5]} 10.
Nbd2 {[%clk 0:02:59]} 10... Re8 {[%clk 0:02:52.5]} 11. Nf1 {[%clk 0:02:58.8]}
11... Bf8 {[%clk 0:02:52.5]} 12. Ng3 {[%clk 0:02:58.6]} 12... Bb7 {[%clk
0:02:52]} 13. d4 {[%clk 0:02:56.8]} 13... Na5 {[%clk 0:02:47]} 14. Bc2 {[%clk
0:02:55.1]} 14... Nc4 {[%clk 0:02:47.1]} 15. b3 {[%clk 0:02:53.7]} 15... Nb6
{[%clk 0:02:46.8]} 16. a4 {[%clk 0:02:52.7]} 16... g6 {[%clk 0:02:43.1]} 17. a5
{[%clk 0:02:44.3]} 17... Nbd7 {[%clk 0:02:42.3]} 18. d5 {[%clk 0:02:40.1]} 18...
Bg7 {[%clk 0:02:40.3]} 19. c4 {[%clk 0:02:37.6]} 19... bxc4 {[%clk 0:02:37.5]}
20. bxc4 {[%clk 0:02:36.8]} 20... Nh7 {[%clk 0:02:29.4]} 21. Be3 {[%clk
0:02:26.8]} 21... h5 {[%clk 0:02:27.3]} 22. h3 {[%clk 0:02:11.6]} 22... Bc8
{[%clk 0:02:26.8]} 23. Nd2 {[%clk 0:02:01.8]} 23... Rf8 {[%clk 0:02:24.5]} 24.
Nb3 {[%clk 0:01:57.1]} 24... h4 {[%clk 0:02:23.6]} 25. Nf1 {[%clk 0:01:50]}
25... f5 {[%clk 0:02:23.4]} 26. f3 {[%clk 0:01:49.9]} 26... Ndf6 {[%clk
0:02:20.8]} 27. c5 {[%clk 0:01:48.7]} 27... Nh5 {[%clk 0:02:20]} 28. exf5 {[%clk
0:01:23.2]} 28... gxf5 {[%clk 0:02:16.2]} 29. Ra4 {[%clk 0:01:19.6]} 29... f4
{[%clk 0:02:10.5]} 30. Bf2 {[%clk 0:01:18.2]} 30... Qg5 {[%clk 0:02:07.8]} 31.
Kh1 {[%clk 0:01:16.4]} 31... Bd7 {[%clk 0:02:06.8]} 32. c6 {[%clk 0:01:15.3]}
32... Bf5 {[%clk 0:01:59.8]} 33. Nbd2 {[%clk 0:01:07.3]} 33... Ng3+ {[%clk
0:01:59.2]} 34. Nxg3 {[%clk 0:01:01.5]} 34... hxg3 {[%clk 0:02:00.1]} 35. Bg1
{[%clk 0:01:00.8]} 35... Bxh3 {[%clk 0:01:52.1]} 36. Bxh7+ {[%clk 0:00:52.7]}
36... Kxh7 {[%clk 0:01:53]} 37. Qc2+ {[%clk 0:00:52.6]} 37... Bf5 {[%clk
0:01:52.4]} 0-1

[Event "*** Titled Tuesday Blitz"]
[Site "Chess.com"]
[Date "2020.03.03"]
[Round "7"]
[White "ZWISCHENZUGGED"]
[Black "davigator"]
[Result "1-0"]
[WhiteElo "2547"]
[BlackElo "2319"]
[TimeControl "180+1"]
[EndTime "14:13:39 PST"]
[Termination "ZWISCHENZUGGED won by resignation"]

1. d4 {[%clk 0:03:00.9]} 1... Nf6 {[%clk 0:02:59.2]} 2. c4 {[%clk 0:03:00]} 2...
e6 {[%clk 0:02:58.7]} 3. g3 {[%clk 0:02:59.6]} 3... Bb4+ {[%clk 0:02:57.8]} 4.
Bd2 {[%clk 0:02:58.6]} 4... a5 {[%clk 0:02:57.1]} 5. Bg2 {[%clk 0:02:58.5]} 5...
O-O {[%clk 0:02:56.5]} 6. Nf3 {[%clk 0:02:59.1]} 6... b6 {[%clk 0:02:55.9]} 7.
O-O {[%clk 0:02:59.7]} 7... Ba6 {[%clk 0:02:55.3]} 8. Qc2 {[%clk 0:02:55.1]}
8... c6 {[%clk 0:02:55]} 9. Bf4 {[%clk 0:02:51.4]} 9... Be7 {[%clk 0:02:53.8]}
10. Nbd2 {[%clk 0:02:47.3]} 10... d5 {[%clk 0:02:53.3]} 11. Rfc1 {[%clk
0:02:40.4]} 11... Nbd7 {[%clk 0:02:52]} 12. e4 {[%clk 0:02:36.2]} 12... Rc8
{[%clk 0:02:49.8]} 13. e5 {[%clk 0:02:30.1]} 13... Ne8 {[%clk 0:02:49.2]} 14. h4
{[%clk 0:02:17.8]} 14... h6 {[%clk 0:02:46.8]} 15. cxd5 {[%clk 0:02:05.3]} 15...
cxd5 {[%clk 0:02:45.8]} 16. Qd1 {[%clk 0:02:05.8]} 16... Nb8 {[%clk 0:02:43.1]}
17. Nf1 {[%clk 0:02:00.5]} 17... Nc6 {[%clk 0:02:42.2]} 18. Qd2 {[%clk
0:01:54.8]} 18... Bxf1 {[%clk 0:02:40.6]} 19. Bxf1 {[%clk 0:01:51.4]} 19... Nb8
{[%clk 0:02:36.5]} 20. Rxc8 {[%clk 0:01:48.7]} 20... Qxc8 {[%clk 0:02:36.2]} 21.
Rc1 {[%clk 0:01:48.8]} 21... Qb7 {[%clk 0:02:35.9]} 22. Bxh6 {[%clk 0:01:43.4]}
22... gxh6 {[%clk 0:02:34.3]} 23. Qxh6 {[%clk 0:01:44.3]} 23... f6 {[%clk
0:02:31.5]} 24. Bd3 {[%clk 0:01:15.9]} 24... f5 {[%clk 0:02:26.4]} 25. Qxe6+
{[%clk 0:01:14.4]} 25... Kg7 {[%clk 0:02:22.3]} 26. Bxf5 {[%clk 0:01:09.9]}
26... Rf7 {[%clk 0:02:20.6]} 27. Qg6+ {[%clk 0:01:06.7]} 27... Kf8 {[%clk
0:02:17.6]} 28. Be6 {[%clk 0:01:05.4]} 28... Bd8 {[%clk 0:02:15.3]} 29. Qxf7+
{[%clk 0:00:49.3]} 29... Qxf7 {[%clk 0:02:14.1]} 30. Bxf7 {[%clk 0:00:50.2]}
30... Kxf7 {[%clk 0:02:15]} 31. Ng5+ {[%clk 0:00:49.8]} 31... Ke7 {[%clk
0:02:11.7]} 32. h5 {[%clk 0:00:47.4]} 32... Kd7 {[%clk 0:02:03.3]} 33. Nf7
{[%clk 0:00:39.6]} 33... Nc6 {[%clk 0:01:58.8]} 34. Rxc6 {[%clk 0:00:34.7]} 1-0

[Event "*** Titled Tuesday Blitz"]
[Site "Chess.com"]
[Date "2020.03.03"]
[Round "7"]
[White "Orest_Vovk"]
[Black "violetflower04"]
[Result "1-0"]
[WhiteElo "2533"]
[BlackElo "2201"]
[TimeControl "180+1"]
[EndTime "14:13:51 PST"]
[Termination "Orest_Vovk won by resignation"]

1. d4 {[%clk 0:03:00.9]} 1... d5 {[%clk 0:03:00.1]} 2. Bf4 {[%clk 0:03:00.7]}
2... e6 {[%clk 0:02:59.9]} 3. e3 {[%clk 0:03:01]} 3... Nf6 {[%clk 0:03:00.1]} 4.
Nf3 {[%clk 0:03:01.2]} 4... c5 {[%clk 0:03:00.5]} 5. c3 {[%clk 0:03:00.6]} 5...
Nc6 {[%clk 0:03:01]} 6. Be2 {[%clk 0:02:57.4]} 6... Ke7 {[%clk 0:03:00.6]} 7.
O-O {[%clk 0:02:55.8]} 7... c4 {[%clk 0:02:51.4]} 8. Nbd2 {[%clk 0:02:55.6]}
8... h6 {[%clk 0:02:49.6]} 9. h3 {[%clk 0:02:55]} 9... g5 {[%clk 0:02:49.8]} 10.
Bh2 {[%clk 0:02:55]} 10... Bg7 {[%clk 0:02:45.9]} 11. Ne5 {[%clk 0:02:54.9]}
11... Nd7 {[%clk 0:02:28]} 12. f4 {[%clk 0:02:50.3]} 12... Ndxe5 {[%clk
0:01:56.6]} 13. fxe5 {[%clk 0:02:50.1]} 13... Rf8 {[%clk 0:01:56.3]} 14. e4
{[%clk 0:02:49.1]} 14... f6 {[%clk 0:01:49.9]} 15. exf6+ {[%clk 0:02:47.5]}
15... Bxf6 {[%clk 0:01:45.1]} 16. e5 {[%clk 0:02:47.6]} 16... Bg7 {[%clk
0:01:44.5]} 17. Qc2 {[%clk 0:02:43.5]} 17... Rxf1+ {[%clk 0:00:59.1]} 18. Rxf1
{[%clk 0:02:42.7]} 18... Qh8 {[%clk 0:00:59.4]} 19. Qg6 {[%clk 0:02:33.5]} 19...
Qg8 {[%clk 0:00:59.8]} 20. Bh5 {[%clk 0:02:31.2]} 20... Nd8 {[%clk 0:00:56.8]}
21. b3 {[%clk 0:02:03]} 21... b5 {[%clk 0:00:56.2]} 22. h4 {[%clk 0:01:56.7]}
22... gxh4 {[%clk 0:00:51.3]} 23. Bf4 {[%clk 0:01:54.6]} 23... Nf7 {[%clk
0:00:33]} 24. Be3 {[%clk 0:01:42.5]} 24... Nh8 {[%clk 0:00:30.1]} 25. Qg4 {[%clk
0:01:36.7]} 25... Bd7 {[%clk 0:00:27.7]} 26. Qxh4+ {[%clk 0:01:35.3]} 1-0

[Event "*** Titled Tuesday Blitz"]
[Site "Chess.com"]
[Date "2020.03.03"]
[Round "7"]
[White "atbenina64"]
[Black "moro182"]
[Result "1/2-1/2"]
[WhiteElo "2539"]
[BlackElo "2696"]
[TimeControl "180+1"]
[EndTime "14:14:19 PST"]
[Termination "Game drawn by repetition"]

1. c4 {[%clk 0:03:00.9]} 1... Nf6 {[%clk 0:02:59.9]} 2. Nc3 {[%clk 0:03:00.4]}
2... e6 {[%clk 0:02:59.9]} 3. e4 {[%clk 0:02:59.8]} 3... c5 {[%clk 0:02:59.4]}
4. e5 {[%clk 0:02:59.6]} 4... Ng8 {[%clk 0:02:59.6]} 5. Nf3 {[%clk 0:03:00.2]}
5... Nc6 {[%clk 0:02:59.6]} 6. d4 {[%clk 0:03:00.1]} 6... cxd4 {[%clk
0:03:00.5]} 7. Nxd4 {[%clk 0:03:00.6]} 7... Nxd4 {[%clk 0:03:00.9]} 8. Qxd4
{[%clk 0:03:00.1]} 8... Ne7 {[%clk 0:03:00.1]} 9. Be3 {[%clk 0:02:42.6]} 9...
Nc6 {[%clk 0:03:00.1]} 10. Qe4 {[%clk 0:02:42.9]} 10... Qa5 {[%clk 0:03:00.1]}
11. f4 {[%clk 0:02:40.1]} 11... Bb4 {[%clk 0:02:54.2]} 12. Bd2 {[%clk
0:02:38.4]} 12... b6 {[%clk 0:02:45.7]} 13. a3 {[%clk 0:02:37.6]} 13... Bxc3
{[%clk 0:02:42.9]} 14. Bxc3 {[%clk 0:02:37]} 14... Qa4 {[%clk 0:02:35.2]} 15.
Bd3 {[%clk 0:02:31.8]} 15... Bb7 {[%clk 0:02:33.3]} 16. Bc2 {[%clk 0:02:23.3]}
16... Qa6 {[%clk 0:02:27.5]} 17. Qe2 {[%clk 0:02:11.5]} 17... Na5 {[%clk
0:02:02.5]} 18. Bd3 {[%clk 0:02:05.6]} 18... Nb3 {[%clk 0:02:02.5]} 19. Rd1
{[%clk 0:01:53.8]} 19... Rc8 {[%clk 0:02:01.8]} 20. c5 {[%clk 0:01:51.6]} 20...
Qa4 {[%clk 0:01:59.6]} 21. Bb5 {[%clk 0:01:51.1]} 21... Qxf4 {[%clk 0:01:54]}
22. Bxd7+ {[%clk 0:01:46.4]} 22... Ke7 {[%clk 0:01:52.4]} 23. cxb6 {[%clk
0:01:25.1]} 23... Rxc3 {[%clk 0:01:30.4]} 24. bxc3 {[%clk 0:01:24.8]} 24... axb6
{[%clk 0:01:30.8]} 25. Bb5 {[%clk 0:01:18.1]} 25... Nc5 {[%clk 0:01:29.7]} 26.
Rf1 {[%clk 0:01:14.2]} 26... Qxh2 {[%clk 0:01:26]} 27. Qe3 {[%clk 0:01:06.1]}
27... Qxg2 {[%clk 0:01:22.1]} 28. Qxc5+ {[%clk 0:00:58.5]} 28... bxc5 {[%clk
0:01:22.1]} 29. Rd7+ {[%clk 0:00:58.1]} 29... Ke8 {[%clk 0:01:22.4]} 30. Rd2+
{[%clk 0:00:40.7]} 30... Kf8 {[%clk 0:01:21.9]} 31. Rd8+ {[%clk 0:00:37.6]}
31... Ke7 {[%clk 0:01:22.1]} 32. Rd7+ {[%clk 0:00:37.4]} 32... Ke8 {[%clk
0:01:22.4]} 33. Rd6+ {[%clk 0:00:34.1]} 33... Kf8 {[%clk 0:01:17]} 34. Rd8+
{[%clk 0:00:33.8]} 34... Ke7 {[%clk 0:01:17.3]} 35. Rd7+ {[%clk 0:00:34.7]}
1/2-1/2

[Event "*** Titled Tuesday Blitz"]
[Site "Chess.com"]
[Date "2020.03.03"]
[Round "7"]
[White "Sibelephant"]
[Black "TigrVShlyape"]
[Result "1/2-1/2"]
[WhiteElo "3029"]
[BlackElo "2897"]
[TimeControl "180+1"]
[EndTime "14:14:22 PST"]
[Termination "Game drawn by agreement"]

1. Nf3 {[%clk 0:02:59.5]} 1... Nf6 {[%clk 0:02:50]} 2. g3 {[%clk 0:02:53.7]}
2... g6 {[%clk 0:02:49.3]} 3. b3 {[%clk 0:02:53.4]} 3... Bg7 {[%clk 0:02:49.4]}
4. Bb2 {[%clk 0:02:53.7]} 4... O-O {[%clk 0:02:49.9]} 5. Bg2 {[%clk 0:02:53.8]}
5... d5 {[%clk 0:02:50.3]} 6. c4 {[%clk 0:02:53]} 6... c6 {[%clk 0:02:50.2]} 7.
O-O {[%clk 0:02:53.2]} 7... Bg4 {[%clk 0:02:48.9]} 8. d4 {[%clk 0:02:52.7]} 8...
Bxf3 {[%clk 0:02:45.7]} 9. Bxf3 {[%clk 0:02:52.5]} 9... e6 {[%clk 0:02:46]} 10.
Nc3 {[%clk 0:02:46.6]} 10... Nbd7 {[%clk 0:02:44.7]} 11. e3 {[%clk 0:02:46.8]}
11... Re8 {[%clk 0:02:43.9]} 12. Qc2 {[%clk 0:02:44.6]} 12... a5 {[%clk
0:02:43.8]} 13. Bg2 {[%clk 0:02:43.1]} 13... Nb6 {[%clk 0:02:38.4]} 14. Ne2
{[%clk 0:02:41.2]} 14... Nbd7 {[%clk 0:02:32.7]} 15. Rfd1 {[%clk 0:02:40.3]}
15... Qb6 {[%clk 0:02:31.8]} 16. Nf4 {[%clk 0:02:38.9]} 16... Red8 {[%clk
0:02:30.8]} 17. Nd3 {[%clk 0:02:37.8]} 17... Qa7 {[%clk 0:02:30.5]} 18. Rac1
{[%clk 0:02:35.8]} 18... Bf8 {[%clk 0:02:29.6]} 19. h3 {[%clk 0:02:31.4]} 19...
Bg7 {[%clk 0:02:27.8]} 20. Qe2 {[%clk 0:02:30.5]} 20... Ne8 {[%clk 0:02:26.2]}
21. Rc2 {[%clk 0:02:26]} 21... a4 {[%clk 0:02:23.6]} 22. Bc3 {[%clk 0:02:24.2]}
22... axb3 {[%clk 0:02:23]} 23. axb3 {[%clk 0:02:24]} 23... Qb6 {[%clk
0:02:22.8]} 24. Rb2 {[%clk 0:02:13.8]} 24... Ra7 {[%clk 0:02:14.3]} 25. Qc2
{[%clk 0:01:59.6]} 25... Rda8 {[%clk 0:02:12.6]} 26. Be1 {[%clk 0:01:36.6]}
26... Ra3 {[%clk 0:02:08.1]} 27. b4 {[%clk 0:01:34.2]} 27... Qa7 {[%clk
0:01:57.4]} 28. cxd5 {[%clk 0:01:02.9]} 28... cxd5 {[%clk 0:01:56.6]} 29. b5
{[%clk 0:01:03.3]} 29... Ra1 {[%clk 0:01:41.6]} 30. Rbb1 {[%clk 0:00:45.4]}
30... Rxb1 {[%clk 0:01:40.7]} 31. Rxb1 {[%clk 0:00:44.8]} 31... Nb6 {[%clk
0:01:32.2]} 32. Bb4 {[%clk 0:00:37]} 32... Nc4 {[%clk 0:01:26.7]} 33. Nf4 {[%clk
0:00:33.6]} 33... Qa4 {[%clk 0:01:20.3]} 34. Qxa4 {[%clk 0:00:32.7]} 34... Rxa4
{[%clk 0:01:20.3]} 1/2-1/2